[Event "Titled Tuesday Blitz November 07 Early 2023"]
[White "secrethawk1"]
[Black "Khater, Sherif"]
[BlackFideId "2034280"]
[WhiteElo "2369"]
[BlackElo "2491"]
[Result "1-0"]
[Round "10"]
[TimeControl "180+1"]
[Date "2023.11.07"]
[WhiteClock "0:00:15"]
[BlackClock "0:00:05"]
[Board "103"]

1. e4 {[%clk 0:03:00]}  a6 {[%clk 0:02:59]} 2. c4 {[%clk 0:02:58]}  c5 {[%clk 0:02:58]} 3. Nf3 {[%clk 0:02:52]}  Nc6 {[%clk 0:02:58]} 4. d4 {[%clk 0:02:51]}  cxd4 {[%clk 0:02:58]} 5. Nxd4 {[%clk 0:02:52]}  d6 {[%clk 0:02:57]} 6. Nc3 {[%clk 0:02:52]}  Nf6 {[%clk 0:02:58]} 7. Be2 {[%clk 0:02:48]}  g6 {[%clk 0:02:58]} 8. Be3 {[%clk 0:02:48]}  Bg7 {[%clk 0:02:58]} 9. O-O {[%clk 0:02:47]}  O-O {[%clk 0:02:59]} 10. Qd2 {[%clk 0:02:44]}  Nxd4 {[%clk 0:02:59]} 11. Bxd4 {[%clk 0:02:43]}  Bd7 {[%clk 0:02:59]} 12. Bd3 {[%clk 0:02:42]}  b5 {[%clk 0:02:59]} 13. Rae1 {[%clk 0:02:32]}  bxc4 {[%clk 0:02:59]} 14. Bxc4 {[%clk 0:02:32]}  Be6 {[%clk 0:02:58]} 15. Bxe6 {[%clk 0:02:30]}  fxe6 {[%clk 0:02:59]} 16. Qd3 {[%clk 0:02:23]}  Kh8 {[%clk 0:02:48]} 17. Rd1 {[%clk 0:02:20]}  Qb8 {[%clk 0:02:46]} 18. Qe2 {[%clk 0:02:16]}  e5 {[%clk 0:02:38]} 19. Be3 {[%clk 0:02:13]}  Qb7 {[%clk 0:02:38]} 20. f3 {[%clk 0:02:10]}  Rab8 {[%clk 0:02:37]} 21. Rd2 {[%clk 0:02:09]}  Nh5 {[%clk 0:02:35]} 22. Rfd1 {[%clk 0:02:06]}  Nf4 {[%clk 0:02:34]} 23. Bxf4 {[%clk 0:01:51]}  exf4 {[%clk 0:02:34]} 24. Nd5 {[%clk 0:01:49]}  Be5 {[%clk 0:02:32]} 25. b3 {[%clk 0:01:47]}  Rbc8 {[%clk 0:02:30]} 26. Qf2 {[%clk 0:01:37]}  Rc6 {[%clk 0:02:24]} 27. a3 {[%clk 0:01:31]}  e6 {[%clk 0:02:10]} 28. Nb4 {[%clk 0:01:25]}  Rb6 {[%clk 0:02:08]} 29. Kh1 {[%clk 0:01:19]}  a5 {[%clk 0:02:07]} 30. Nd3 {[%clk 0:01:17]}  Rxb3 {[%clk 0:02:07]} 31. Nxe5 {[%clk 0:01:17]}  dxe5 {[%clk 0:02:07]} 32. Qc5 {[%clk 0:01:17]}  Qb8 {[%clk 0:01:58]} 33. h3 {[%clk 0:01:04]}  a4 {[%clk 0:01:51]} 34. Rd7 {[%clk 0:01:02]}  Re8 {[%clk 0:00:51]} 35. Kh2 {[%clk 0:00:47]}  Rb7 {[%clk 0:00:39]} 36. Rxb7 {[%clk 0:00:37]}  Qxb7 {[%clk 0:00:39]} 37. Qxe5+ {[%clk 0:00:37]}  Qg7 {[%clk 0:00:40]} 38. Qxf4 {[%clk 0:00:37]}  e5 {[%clk 0:00:36]} 39. Qe3 {[%clk 0:00:32]}  Qe7 {[%clk 0:00:34]} 40. Rd5 {[%clk 0:00:30]}  Rc8 {[%clk 0:00:24]} 41. Qd3 {[%clk 0:00:22]}  Qf6 {[%clk 0:00:19]} 42. Qd2 {[%clk 0:00:21]}  Rf8 {[%clk 0:00:13]} 43. Ra5 {[%clk 0:00:20]}  Rd8 {[%clk 0:00:12]} 44. Qe3 {[%clk 0:00:18]}  Kg8 {[%clk 0:00:06]} 45. Rxa4 {[%clk 0:00:18]}  Rc8 {[%clk 0:00:07]} 46. Rb4 {[%clk 0:00:16]}  Rc2 {[%clk 0:00:07]} 47. Qb3+ {[%clk 0:00:16]}  Kg7 {[%clk 0:00:06]} 48. Qxc2 {[%clk 0:00:16]}  Qf4+ {[%clk 0:00:07]} 49. Kh1 {[%clk 0:00:15]}  Qe3 {[%clk 0:00:05]} 50. Rb1 {[%clk 0:00:15]} 1-0


[Site "https://www.chess.com"]

[Event "Titled Tuesday Blitz November 07 Early 2023"]
[White "gpsji27"]
[Black "Willy, Stephen"]
[BlackFideId "30981468"]
[WhiteElo "2356"]
[BlackElo "2485"]
[Result "1-0"]
[Round "10"]
[TimeControl "180+1"]
[Date "2023.11.07"]
[WhiteClock "0:00:05"]
[BlackClock "0:00:00"]
[Board "105"]

1. d4 {[%clk 0:03:00]}  d5 {[%clk 0:02:58]} 2. Nf3 {[%clk 0:02:59]}  Nf6 {[%clk 0:02:57]} 3. Bg5 {[%clk 0:02:55]}  Ne4 {[%clk 0:02:56]} 4. Bh4 {[%clk 0:02:51]}  c5 {[%clk 0:02:53]} 5. e3 {[%clk 0:02:50]}  Qb6 {[%clk 0:02:52]} 6. Qc1 {[%clk 0:02:50]}  Nc6 {[%clk 0:02:50]} 7. c3 {[%clk 0:02:50]}  Bg4 {[%clk 0:02:47]} 8. Nbd2 {[%clk 0:02:50]}  Rc8 {[%clk 0:02:45]} 9. h3 {[%clk 0:02:07]}  Bf5 {[%clk 0:02:23]} 10. Nxe4 {[%clk 0:01:39]}  Bxe4 {[%clk 0:02:16]} 11. dxc5 {[%clk 0:01:35]}  Qxc5 {[%clk 0:02:12]} 12. Be2 {[%clk 0:01:35]}  e6 {[%clk 0:01:46]} 13. O-O {[%clk 0:01:34]}  Bd6 {[%clk 0:01:41]} 14. Qd2 {[%clk 0:01:32]}  O-O {[%clk 0:01:24]} 15. Rfd1 {[%clk 0:01:10]}  Qb6 {[%clk 0:01:11]} 16. Rac1 {[%clk 0:00:27]}  Bg6 {[%clk 0:00:35]} 17. Bd3 {[%clk 0:00:25]}  f5 {[%clk 0:00:34]} 18. Qe2 {[%clk 0:00:15]}  Bh5 {[%clk 0:00:33]} 19. Bc2 {[%clk 0:00:15]}  Ne5 {[%clk 0:00:33]} 20. Bb3 {[%clk 0:00:12]}  Bxf3 {[%clk 0:00:30]} 21. gxf3 {[%clk 0:00:13]}  Ng6 {[%clk 0:00:30]} 22. Bg3 {[%clk 0:00:13]}  f4 {[%clk 0:00:30]} 23. exf4 {[%clk 0:00:13]}  Bxf4 {[%clk 0:00:31]} 24. Kh2 {[%clk 0:00:09]}  Bxc1 {[%clk 0:00:30]} 25. Rxc1 {[%clk 0:00:10]}  Rce8 {[%clk 0:00:31]} 26. Re1 {[%clk 0:00:10]}  h6 {[%clk 0:00:30]} 27. Qd3 {[%clk 0:00:10]}  Nf4 {[%clk 0:00:29]} 28. Qd2 {[%clk 0:00:07]}  Nh5 {[%clk 0:00:27]} 29. Rg1 {[%clk 0:00:05]}  Rxf3 {[%clk 0:00:24]} 30. Bd1 {[%clk 0:00:06]}  Rf5 {[%clk 0:00:24]} 31. Bg4 {[%clk 0:00:05]}  Nxg3 {[%clk 0:00:23]} 32. Bxf5 {[%clk 0:00:05]}  Nxf5 {[%clk 0:00:24]} 33. Qf4 {[%clk 0:00:05]}  Qd6 {[%clk 0:00:24]} 34. Qxd6 {[%clk 0:00:04]}  Nxd6 {[%clk 0:00:25]} 35. Rg6 {[%clk 0:00:04]}  Kf7 {[%clk 0:00:25]} 36. Rg4 {[%clk 0:00:05]}  Nc4 {[%clk 0:00:25]} 37. b3 {[%clk 0:00:05]}  Ne5 {[%clk 0:00:25]} 38. Rf4+ {[%clk 0:00:05]}  Ke7 {[%clk 0:00:25]} 39. Rb4 {[%clk 0:00:05]}  b6 {[%clk 0:00:26]} 40. Ra4 {[%clk 0:00:05]}  Nc6 {[%clk 0:00:25]} 41. Rg4 {[%clk 0:00:04]}  g5 {[%clk 0:00:23]} 42. h4 {[%clk 0:00:05]}  Rf8 {[%clk 0:00:23]} 43. Kg2 {[%clk 0:00:05]}  Rf4 {[%clk 0:00:21]} 44. Rxf4 {[%clk 0:00:03]}  gxf4 {[%clk 0:00:22]} 45. Kf3 {[%clk 0:00:04]}  e5 {[%clk 0:00:23]} 46. h5 {[%clk 0:00:05]}  Ke6 {[%clk 0:00:22]} 47. Ke2 {[%clk 0:00:04]}  d4 {[%clk 0:00:22]} 48. Kd3 {[%clk 0:00:04]}  Kd5 {[%clk 0:00:22]} 49. c4+ {[%clk 0:00:04]}  Kc5 {[%clk 0:00:22]} 50. Ke4 {[%clk 0:00:05]}  Nb4 {[%clk 0:00:00]} 51. a3 {[%clk 0:00:05]} 1-0


[Site "https://www.chess.com"]

[Event "Titled Tuesday Blitz November 07 Early 2023"]
[White "MIss_MIaMI"]
[Black "Lund, Gunnar"]
[BlackFideId "1520814"]
[WhiteElo "2341"]
[BlackElo "2483"]
[Result "0-1"]
[Round "10"]
[TimeControl "180+1"]
[Date "2023.11.07"]
[WhiteClock "0:00:42"]
[BlackClock "0:00:40"]
[Board "106"]

1. e4 {[%clk 0:03:00]}  e6 {[%clk 0:02:49]} 2. Nf3 {[%clk 0:03:00]}  d5 {[%clk 0:02:50]} 3. exd5 {[%clk 0:03:01]}  exd5 {[%clk 0:02:50]} 4. d4 {[%clk 0:03:02]}  Nf6 {[%clk 0:02:49]} 5. c4 {[%clk 0:03:02]}  Ke7 {[%clk 0:02:48]} 6. Qb3 {[%clk 0:02:40]}  Ke8 {[%clk 0:02:44]} 7. Nc3 {[%clk 0:02:39]}  c6 {[%clk 0:02:42]} 8. Be3 {[%clk 0:02:35]}  Be7 {[%clk 0:02:41]} 9. Be2 {[%clk 0:02:30]}  Kf8 {[%clk 0:02:35]} 10. O-O {[%clk 0:02:28]}  Na6 {[%clk 0:02:35]} 11. cxd5 {[%clk 0:02:25]}  Nxd5 {[%clk 0:02:35]} 12. Nxd5 {[%clk 0:02:21]}  Qxd5 {[%clk 0:02:34]} 13. Bc4 {[%clk 0:02:11]}  Qh5 {[%clk 0:02:34]} 14. Ne5 {[%clk 0:02:02]}  Nc7 {[%clk 0:02:19]} 15. Bxf7 {[%clk 0:01:50]}  Qf5 {[%clk 0:02:19]} 16. Bc4 {[%clk 0:01:46]}  b5 {[%clk 0:02:09]} 17. Bd3 {[%clk 0:01:46]}  Qe6 {[%clk 0:02:07]} 18. Qc2 {[%clk 0:01:40]}  Bd7 {[%clk 0:01:59]} 19. Bxh7 {[%clk 0:01:21]}  Nd5 {[%clk 0:01:57]} 20. Ng6+ {[%clk 0:01:19]}  Kf7 {[%clk 0:01:57]} 21. Ne5+ {[%clk 0:01:10]}  Kf8 {[%clk 0:01:50]} 22. Rae1 {[%clk 0:01:03]}  Bf6 {[%clk 0:01:49]} 23. Ng6+ {[%clk 0:00:54]}  Kf7 {[%clk 0:01:49]} 24. Nxh8+ {[%clk 0:00:55]}  Rxh8 {[%clk 0:01:49]} 25. Qg6+ {[%clk 0:00:43]}  Kf8 {[%clk 0:01:49]} 26. Bg5 {[%clk 0:00:43]}  Qf7 {[%clk 0:01:19]} 27. Bxf6 {[%clk 0:00:39]}  gxf6 {[%clk 0:01:17]} 28. Qxf7+ {[%clk 0:00:39]}  Kxf7 {[%clk 0:01:17]} 29. Be4 {[%clk 0:00:39]}  Ne7 {[%clk 0:01:17]} 30. h3 {[%clk 0:00:32]}  Be6 {[%clk 0:01:17]} 31. b3 {[%clk 0:00:33]}  Rh4 {[%clk 0:01:16]} 32. f3 {[%clk 0:00:30]}  f5 {[%clk 0:01:16]} 33. Bb1 {[%clk 0:00:23]}  Rxd4 {[%clk 0:01:17]} 34. Re2 {[%clk 0:00:24]}  Nd5 {[%clk 0:01:14]} 35. Rfe1 {[%clk 0:00:24]}  Nf4 {[%clk 0:01:13]} 36. Re3 {[%clk 0:00:23]}  Rd2 {[%clk 0:01:13]} 37. g3 {[%clk 0:00:15]}  Rg2+ {[%clk 0:01:12]} 38. Kh1 {[%clk 0:00:14]}  Rxg3 {[%clk 0:01:12]} 39. Kh2 {[%clk 0:00:09]}  Rxh3+ {[%clk 0:01:11]} 40. Kg1 {[%clk 0:00:09]}  Rg3+ {[%clk 0:01:10]} 41. Kh2 {[%clk 0:00:09]}  Rg2+ {[%clk 0:01:06]} 42. Kh1 {[%clk 0:00:10]}  Rg5 {[%clk 0:01:05]} 43. a4 {[%clk 0:00:10]}  a6 {[%clk 0:01:04]} 44. axb5 {[%clk 0:00:10]}  axb5 {[%clk 0:01:05]} 45. b4 {[%clk 0:00:10]}  Bd5 {[%clk 0:01:04]} 46. Rd1 {[%clk 0:00:10]}  Kf6 {[%clk 0:01:02]} 47. Rd2 {[%clk 0:00:10]}  Ne6 {[%clk 0:01:00]} 48. Ba2 {[%clk 0:00:11]}  f4 {[%clk 0:00:58]} 49. Red3 {[%clk 0:00:10]}  Nc7 {[%clk 0:00:50]} 50. Bxd5 {[%clk 0:00:09]}  Nxd5 {[%clk 0:00:51]} 51. Rc2 {[%clk 0:00:08]}  Nxb4 {[%clk 0:00:49]} 52. Rd6+ {[%clk 0:00:06]}  Ke7 {[%clk 0:00:50]} 53. Rcd2 {[%clk 0:00:07]}  c5 {[%clk 0:00:42]} 54. Rb6 {[%clk 0:00:07]}  c4 {[%clk 0:00:37]} 55. Re2+ {[%clk 0:00:07]}  Kf7 {[%clk 0:00:37]} 56. Kh2 {[%clk 0:00:05]}  Nd3 {[%clk 0:00:35]} 57. Kh3 {[%clk 0:00:05]}  b4 {[%clk 0:00:31]} 58. Ra2 {[%clk 0:00:05]}  Re5 {[%clk 0:00:27]} 59. Ra7+ {[%clk 0:00:06]}  Re7 {[%clk 0:00:27]} 60. Rxe7+ {[%clk 0:00:05]}  Kxe7 {[%clk 0:00:28]} 61. Kg4 {[%clk 0:00:04]}  c3 {[%clk 0:00:28]} 62. Kf5 {[%clk 0:00:04]}  c2 {[%clk 0:00:27]} 63. Rc6 {[%clk 0:00:04]}  b3 {[%clk 0:00:26]} 64. Ke4 {[%clk 0:00:03]}  b2 {[%clk 0:00:24]} 65. Kxd3 {[%clk 0:00:04]}  c1=Q {[%clk 0:00:24]} 66. Rxc1 {[%clk 0:00:03]}  bxc1=Q {[%clk 0:00:24]} 67. Ke4 {[%clk 0:00:04]}  Qe3+ {[%clk 0:00:25]} 68. Kf5 {[%clk 0:00:04]}  Qxf3 {[%clk 0:00:25]} 69. Kg5 {[%clk 0:00:05]}  Qe3 {[%clk 0:00:26]} 70. Kf5 {[%clk 0:00:06]}  f3 {[%clk 0:00:27]} 71. Kg4 {[%clk 0:00:06]}  f2 {[%clk 0:00:27]} 72. Kf5 {[%clk 0:00:07]}  Kd6 {[%clk 0:00:23]} 73. Kg4 {[%clk 0:00:08]}  Kc5 {[%clk 0:00:24]} 74. Kf5 {[%clk 0:00:09]}  Kb4 {[%clk 0:00:25]} 75. Kg4 {[%clk 0:00:09]}  Ka3 {[%clk 0:00:26]} 76. Kf5 {[%clk 0:00:10]}  Kb2 {[%clk 0:00:27]} 77. Kg4 {[%clk 0:00:11]}  Kc1 {[%clk 0:00:28]} 78. Kf5 {[%clk 0:00:12]}  Kc2 {[%clk 0:00:29]} 79. Kg4 {[%clk 0:00:13]}  Kc3 {[%clk 0:00:30]} 80. Kf5 {[%clk 0:00:14]}  Kc4 {[%clk 0:00:31]} 81. Kg4 {[%clk 0:00:15]}  Kc5 {[%clk 0:00:32]} 82. Kf5 {[%clk 0:00:16]}  Kc6 {[%clk 0:00:32]} 83. Kg4 {[%clk 0:00:16]}  Kc7 {[%clk 0:00:33]} 84. Kf5 {[%clk 0:00:17]}  Kc8 {[%clk 0:00:34]} 85. Kg4 {[%clk 0:00:18]}  Kb8 {[%clk 0:00:35]} 86. Kf5 {[%clk 0:00:19]}  Ka8 {[%clk 0:00:36]} 87. Kg4 {[%clk 0:00:20]}  Ka7 {[%clk 0:00:37]} 88. Kf5 {[%clk 0:00:21]}  Ka6 {[%clk 0:00:38]} 89. Kg4 {[%clk 0:00:22]}  Ka5 {[%clk 0:00:39]} 90. Kf5 {[%clk 0:00:23]}  Ka4 {[%clk 0:00:40]} 91. Kg4 {[%clk 0:00:24]}  Ka3 {[%clk 0:00:41]} 92. Kf5 {[%clk 0:00:25]}  Ka2 {[%clk 0:00:41]} 93. Kg4 {[%clk 0:00:25]}  Ka1 {[%clk 0:00:42]} 94. Kf5 {[%clk 0:00:26]}  Qe2 {[%clk 0:00:43]} 95. Kg5 {[%clk 0:00:26]}  Kb1 {[%clk 0:00:44]} 96. Kf5 {[%clk 0:00:27]}  Kc1 {[%clk 0:00:45]} 97. Kg5 {[%clk 0:00:28]}  Kd1 {[%clk 0:00:46]} 98. Kf5 {[%clk 0:00:29]}  Ke1 {[%clk 0:00:41]} 99. Kg5 {[%clk 0:00:30]}  Kf1 {[%clk 0:00:42]} 100. Kg6 {[%clk 0:00:31]}  Kg1 {[%clk 0:00:43]} 101. Kg5 {[%clk 0:00:31]}  Kh1 {[%clk 0:00:44]} 102. Kg6 {[%clk 0:00:32]}  Kh2 {[%clk 0:00:45]} 103. Kg5 {[%clk 0:00:33]}  Kg2 {[%clk 0:00:46]} 104. Kg6 {[%clk 0:00:34]}  Kg3 {[%clk 0:00:45]} 105. Kg5 {[%clk 0:00:35]}  Kh3 {[%clk 0:00:45]} 106. Kg6 {[%clk 0:00:36]}  Kg4 {[%clk 0:00:45]} 107. Kg7 {[%clk 0:00:36]}  Kg5 {[%clk 0:00:45]} 108. Kf7 {[%clk 0:00:37]}  f1=Q+ {[%clk 0:00:42]} 109. Kg7 {[%clk 0:00:38]}  Qe7+ {[%clk 0:00:42]} 110. Kg8 {[%clk 0:00:38]}  Qff7+ {[%clk 0:00:42]} 111. Kh8 {[%clk 0:00:38]}  Qff6+ {[%clk 0:00:41]} 112. Kg8 {[%clk 0:00:38]}  Qg6+ {[%clk 0:00:41]} 113. Kh8 {[%clk 0:00:39]}  Qh5+ {[%clk 0:00:41]} 114. Kg8 {[%clk 0:00:40]}  Qe6+ {[%clk 0:00:39]} 115. Kg7 {[%clk 0:00:39]}  Qe5+ {[%clk 0:00:39]} 116. Kg8 {[%clk 0:00:40]}  Qb8+ {[%clk 0:00:39]} 117. Kg7 {[%clk 0:00:41]}  Qc7+ {[%clk 0:00:39]} 118. Kg8 {[%clk 0:00:42]}  Qhh7+ {[%clk 0:00:39]} 119. Kf8 {[%clk 0:00:42]}  Qh8# {[%clk 0:00:40]} 0-1


[Site "https://www.chess.com"]

[Event "Titled Tuesday Blitz November 07 Early 2023"]
[White "Devaev, Alexander"]
[Black "Petrova, Irina"]
[WhiteFideId "4169395"]
[BlackFideId "14124122"]
[WhiteElo "2471"]
[BlackElo "2332"]
[Result "1-0"]
[Round "10"]
[TimeControl "180+1"]
[Date "2023.11.07"]
[WhiteClock "0:00:30"]
[BlackClock "0:01:02"]
[Board "107"]

1. Nf3 {[%clk 0:03:00]}  d6 {[%clk 0:03:00]} 2. d4 {[%clk 0:02:59]}  g6 {[%clk 0:03:01]} 3. c4 {[%clk 0:02:51]}  Bg7 {[%clk 0:03:02]} 4. Nc3 {[%clk 0:02:49]}  Nc6 {[%clk 0:03:01]} 5. h3 {[%clk 0:02:49]}  e5 {[%clk 0:03:00]} 6. d5 {[%clk 0:02:49]}  Nce7 {[%clk 0:03:00]} 7. e4 {[%clk 0:02:49]}  f5 {[%clk 0:03:00]} 8. Bd3 {[%clk 0:02:49]}  Nf6 {[%clk 0:03:00]} 9. Bg5 {[%clk 0:02:46]}  O-O {[%clk 0:03:00]} 10. Qc2 {[%clk 0:02:43]}  h6 {[%clk 0:02:56]} 11. Bd2 {[%clk 0:02:40]}  a5 {[%clk 0:02:48]} 12. Nh4 {[%clk 0:02:36]}  fxe4 {[%clk 0:02:41]} 13. Nxe4 {[%clk 0:02:35]}  Nxe4 {[%clk 0:02:40]} 14. Bxe4 {[%clk 0:02:36]}  Bf5 {[%clk 0:02:33]} 15. Nxg6 {[%clk 0:02:12]}  Nxg6 {[%clk 0:02:11]} 16. Bxf5 {[%clk 0:02:12]}  Nh4 {[%clk 0:02:12]} 17. Be4 {[%clk 0:02:00]}  Qf6 {[%clk 0:02:07]} 18. Be3 {[%clk 0:02:01]}  Nf5 {[%clk 0:01:57]} 19. Bxf5 {[%clk 0:02:00]}  Qxf5 {[%clk 0:01:58]} 20. Qxf5 {[%clk 0:02:00]}  Rxf5 {[%clk 0:01:59]} 21. Ke2 {[%clk 0:02:00]}  a4 {[%clk 0:01:51]} 22. Rac1 {[%clk 0:01:57]}  b6 {[%clk 0:01:52]} 23. Rc2 {[%clk 0:01:52]}  Raf8 {[%clk 0:01:42]} 24. Kd3 {[%clk 0:01:50]}  Kf7 {[%clk 0:01:26]} 25. Ke4 {[%clk 0:01:49]}  Kg6 {[%clk 0:01:18]} 26. h4 {[%clk 0:01:30]}  h5 {[%clk 0:01:17]} 27. Rh3 {[%clk 0:01:30]}  Bh6 {[%clk 0:01:15]} 28. Rg3+ {[%clk 0:01:26]}  Kh7 {[%clk 0:01:16]} 29. Rf3 {[%clk 0:00:45]}  Bxe3 {[%clk 0:01:09]} 30. Rxf5 {[%clk 0:00:44]}  Rxf5 {[%clk 0:01:06]} 31. Kxf5 {[%clk 0:00:43]}  Bd4 {[%clk 0:01:02]} 32. Kg5 {[%clk 0:00:30]} 1-0


[Site "https://www.chess.com"]

[Event "Titled Tuesday Blitz November 07 Early 2023"]
[White "ploxoi"]
[Black "Ardila, Oscar Humberto"]
[BlackFideId "4404742"]
[WhiteElo "2465"]
[BlackElo "2331"]
[Result "1-0"]
[Round "10"]
[TimeControl "180+1"]
[Date "2023.11.07"]
[WhiteClock "0:00:23"]
[BlackClock "0:00:00"]
[Board "108"]

1. d4 {[%clk 0:03:00]}  Nf6 {[%clk 0:03:00]} 2. c4 {[%clk 0:03:00]}  e6 {[%clk 0:02:59]} 3. g3 {[%clk 0:03:01]}  Bb4+ {[%clk 0:02:59]} 4. Bd2 {[%clk 0:03:01]}  Qe7 {[%clk 0:02:59]} 5. Bg2 {[%clk 0:03:01]}  O-O {[%clk 0:02:58]} 6. Nf3 {[%clk 0:03:01]}  a5 {[%clk 0:02:58]} 7. O-O {[%clk 0:03:01]}  Bxd2 {[%clk 0:02:58]} 8. Qxd2 {[%clk 0:02:59]}  d6 {[%clk 0:02:59]} 9. Nc3 {[%clk 0:02:56]}  Nbd7 {[%clk 0:02:58]} 10. e4 {[%clk 0:02:53]}  e5 {[%clk 0:02:58]} 11. h3 {[%clk 0:02:54]}  Rd8 {[%clk 0:02:48]} 12. Rfe1 {[%clk 0:02:53]}  c6 {[%clk 0:02:47]} 13. Rad1 {[%clk 0:02:53]}  Nb6 {[%clk 0:02:27]} 14. b3 {[%clk 0:02:50]}  Be6 {[%clk 0:02:27]} 15. Qe3 {[%clk 0:02:42]}  Qc7 {[%clk 0:02:22]} 16. Kh2 {[%clk 0:02:32]}  a4 {[%clk 0:02:16]} 17. d5 {[%clk 0:02:19]}  cxd5 {[%clk 0:02:14]} 18. Nb5 {[%clk 0:02:20]}  Qc5 {[%clk 0:02:12]} 19. Qxc5 {[%clk 0:02:19]}  dxc5 {[%clk 0:02:12]} 20. exd5 {[%clk 0:02:19]}  Bd7 {[%clk 0:02:09]} 21. Nd6 {[%clk 0:02:04]}  e4 {[%clk 0:02:03]} 22. Nxe4 {[%clk 0:02:03]}  Nxe4 {[%clk 0:02:02]} 23. Rxe4 {[%clk 0:02:04]}  axb3 {[%clk 0:02:03]} 24. axb3 {[%clk 0:02:03]}  Ra2 {[%clk 0:02:03]} 25. Kg1 {[%clk 0:01:59]}  Kf8 {[%clk 0:02:02]} 26. Rde1 {[%clk 0:01:58]}  Rb2 {[%clk 0:02:00]} 27. R4e3 {[%clk 0:01:58]}  Bf5 {[%clk 0:01:58]} 28. Ng5 {[%clk 0:01:53]}  h6 {[%clk 0:01:53]} 29. Ne4 {[%clk 0:01:53]}  Bxe4 {[%clk 0:01:50]} 30. Bxe4 {[%clk 0:01:52]}  Nc8 {[%clk 0:01:50]} 31. R1e2 {[%clk 0:01:26]}  Rxe2 {[%clk 0:01:48]} 32. Rxe2 {[%clk 0:01:27]}  Nd6 {[%clk 0:01:48]} 33. Bb1 {[%clk 0:01:27]}  Ra8 {[%clk 0:01:45]} 34. Ra2 {[%clk 0:01:27]}  Re8 {[%clk 0:01:14]} 35. Kf1 {[%clk 0:01:25]}  g5 {[%clk 0:01:01]} 36. Bd3 {[%clk 0:01:21]}  Kg7 {[%clk 0:00:44]} 37. Ra5 {[%clk 0:01:20]}  Rc8 {[%clk 0:00:44]} 38. Ke2 {[%clk 0:01:15]}  Kf6 {[%clk 0:00:41]} 39. Ke3 {[%clk 0:01:13]}  Ke5 {[%clk 0:00:39]} 40. Ra1 {[%clk 0:01:04]}  f5 {[%clk 0:00:38]} 41. f4+ {[%clk 0:01:03]}  gxf4+ {[%clk 0:00:38]} 42. gxf4+ {[%clk 0:01:04]}  Kf6 {[%clk 0:00:38]} 43. Kf3 {[%clk 0:01:05]}  Rg8 {[%clk 0:00:36]} 44. Ra5 {[%clk 0:00:56]}  Rc8 {[%clk 0:00:35]} 45. b4 {[%clk 0:00:52]}  cxb4 {[%clk 0:00:27]} 46. c5 {[%clk 0:00:52]}  Ne4 {[%clk 0:00:15]} 47. Bxe4 {[%clk 0:00:51]}  fxe4+ {[%clk 0:00:16]} 48. Kxe4 {[%clk 0:00:52]}  Re8+ {[%clk 0:00:15]} 49. Kd4 {[%clk 0:00:49]}  Re1 {[%clk 0:00:14]} 50. Rb5 {[%clk 0:00:49]}  Rd1+ {[%clk 0:00:13]} 51. Ke4 {[%clk 0:00:49]}  Re1+ {[%clk 0:00:13]} 52. Kf3 {[%clk 0:00:48]}  Rd1 {[%clk 0:00:13]} 53. Ke4 {[%clk 0:00:43]}  Re1+ {[%clk 0:00:13]} 54. Kd3 {[%clk 0:00:44]}  Rd1+ {[%clk 0:00:13]} 55. Kc4 {[%clk 0:00:44]}  Rc1+ {[%clk 0:00:13]} 56. Kxb4 {[%clk 0:00:44]}  Rf1 {[%clk 0:00:12]} 57. Rxb7 {[%clk 0:00:38]}  Rxf4+ {[%clk 0:00:12]} 58. Kb5 {[%clk 0:00:39]}  Ke5 {[%clk 0:00:12]} 59. d6 {[%clk 0:00:35]}  Rf1 {[%clk 0:00:12]} 60. Kc6 {[%clk 0:00:32]}  Ra1 {[%clk 0:00:06]} 61. Rh7 {[%clk 0:00:31]}  Ra6+ {[%clk 0:00:04]} 62. Kb5 {[%clk 0:00:30]}  Ra1 {[%clk 0:00:03]} 63. Rxh6 {[%clk 0:00:31]}  Kd5 {[%clk 0:00:02]} 64. Rh5+ {[%clk 0:00:30]}  Ke6 {[%clk 0:00:02]} 65. Rg5 {[%clk 0:00:24]}  Kd7 {[%clk 0:00:02]} 66. Rg7+ {[%clk 0:00:23]}  Kd8 {[%clk 0:00:02]} 67. h4 {[%clk 0:00:23]}  Rb1+ {[%clk 0:00:00]} 68. Kc6 {[%clk 0:00:23]} 1-0


[Site "https://www.chess.com"]

[Event "Titled Tuesday Blitz November 07 Early 2023"]
[White "Shishkov, Andrei"]
[Black "Mazzilli, Piero"]
[WhiteFideId "4500563"]
[BlackFideId "807087"]
[WhiteElo "2452"]
[BlackElo "2324"]
[Result "1-0"]
[Round "10"]
[TimeControl "180+1"]
[Date "2023.11.07"]
[WhiteClock "0:02:33"]
[BlackClock "0:02:24"]
[Board "110"]

1. d4 {[%clk 0:03:00]}  d5 {[%clk 0:03:00]} 2. c4 {[%clk 0:03:00]}  e6 {[%clk 0:03:00]} 3. Nc3 {[%clk 0:03:00]}  Nf6 {[%clk 0:03:00]} 4. cxd5 {[%clk 0:03:00]}  exd5 {[%clk 0:02:59]} 5. Bg5 {[%clk 0:03:01]}  c6 {[%clk 0:02:55]} 6. e3 {[%clk 0:03:01]}  Bf5 {[%clk 0:02:54]} 7. Qf3 {[%clk 0:02:59]}  Bg6 {[%clk 0:02:54]} 8. Bxf6 {[%clk 0:03:00]}  Qxf6 {[%clk 0:02:54]} 9. Qxf6 {[%clk 0:03:00]}  gxf6 {[%clk 0:02:55]} 10. Nf3 {[%clk 0:03:01]}  Nd7 {[%clk 0:02:55]} 11. Nh4 {[%clk 0:03:01]}  Bd6 {[%clk 0:02:54]} 12. f3 {[%clk 0:02:55]}  O-O {[%clk 0:02:52]} 13. Kf2 {[%clk 0:02:50]}  Rfe8 {[%clk 0:02:48]} 14. g3 {[%clk 0:02:47]}  Re7 {[%clk 0:02:46]} 15. Bh3 {[%clk 0:02:45]}  Rae8 {[%clk 0:02:45]} 16. Rhe1 {[%clk 0:02:44]}  Nb6 {[%clk 0:02:43]} 17. b3 {[%clk 0:02:44]}  c5 {[%clk 0:02:41]} 18. Nb5 {[%clk 0:02:38]}  Nc8 {[%clk 0:02:24]} 19. Bxc8 {[%clk 0:02:33]} 1-0


[Site "https://www.chess.com"]